[Event "SVK ECo-C Extraliga 2018-19"]
[Site "Slovakia"]
[Date "2019.02.16"]
[Round "5.4"]
[White "Ftacnik, Lubomir"]
[Black "Haring, Filip"]
[Result "1-0"]
[ECO "A15"]
[WhiteElo "2500"]
[BlackElo "2286"]
[Annotator "ChessBase"]
[PlyCount "95"]
[EventDate "2018.11.10"]
[EventType "team-tourn"]
[EventCountry "SVK"]
[SourceTitle "playchess.com"]
[Source "ChessBase"]
[SourceQuality "1"]
[WhiteTeam "Slovan"]
[BlackTeam "Liptovska"]
[TimeControl "40/5400+30:1800+30"]

1. c4 {[%emt 0:00:00]} Nf6 {[%emt 0:00:00]} 2. Nf3 {[%emt 0:00:00]} e6 {[%emt 0:00:27]} 3. g3 {[%emt 0:00:12]} b6 {[%emt 0:01:24]} 4. Bg2 {[%emt 0:00:18]} Bb7 {[%emt 0:00:17]} 5. O-O {[%emt 0:00:12]} Be7 {[%emt 0:00:39]} 6. d4 {[%emt 0:03:32]} O-O {[%emt 0:00:57]} 7. Re1 {[%emt 0:00:08]} c5 {[%emt 0:02:17]} 8. d5 {[%emt 0:02:42]} exd5 {[%emt 0:01:21]} 9. Nh4 {[%emt 0:00:14]} g6 {[%emt 0:02:01]} 10. cxd5 {[%emt 0:04:56]} d6 {[%emt 0:01:05]} 11. Nc3 {[%emt 0:00:37]} Re8 {[%emt 0:07:00]} 12. e4 {[%emt 0:01:49]} Bf8 {[%emt 0:07:04]} 13. Bg5 {[%emt 0:06:49]} Bg7 {[%emt 0:07:16]} 14. Qd2 {[%emt 0:08:22]} Nbd7 {[%emt 0:03:33]} 15. Nf3 {[%emt 0:09:38]} a6 {[%emt 0:05:09]} 16. Qf4 {[%emt 0:04:33]} Ne5 {[%emt 0:11:36]} 17. Nxe5 {[%emt 0:00:58]} Rxe5 {[%emt 0:00:44]} 18. a4 {[%emt 0:01:53]} Bc8 {[%emt 0:16:11]} 19. h4 {[%emt 0:09:30]} Bd7 {[%emt 0:08:26]} 20. Bf1 {[%emt 0:03:28]} Qe7 {[%emt 0:09:09]} 21. Qd2 {[%emt 0:11:18]} Qf8 {[%emt 0:01:31]} 22. f3 {[%emt 0:03:29]} Nh5 {[%emt 0:02:01]} 23. g4 {[%emt 0:02:12]} h6 {[%emt 0:09:44]} 24. Be3 {[%emt 0:00:18]} Qd8 {[%emt 0:01:30]} 25. gxh5 {[%emt 0:09:44]} Qxh4 {[%emt 0:00:04]} 26. Qh2 {[%emt 0:03:46]} Qe7 {[%emt 0:00:34]} 27. hxg6 {[%emt 0:02:16]} fxg6 {[%emt 0:00:13]} 28. Re2 {[%emt 0:03:33]} Rf8 {[%emt 0:01:09]} 29. Qg3 {[%emt 0:01:01]} Kh7 {[%emt 0:00:34]} 30. Rh2 {[%emt 0:01:37]} Rh5 {[%emt 0:00:23]} 31. Bg2 {[%emt 0:02:45]} Bf6 {[%emt 0:00:36]} 32. Rxh5 {[%emt 0:00:58]} gxh5 {[%emt 0:00:04]} 33. Rd1 {[%emt 0:00:51]} Rg8 {[%emt 0:00:24]} 34. Qh2 {[%emt 0:00:06]} h4 {[%emt 0:00:58]} 35. Kh1 {[%emt 0:00:45]} Qf7 {[%emt 0:00:37]} 36. Rf1 {[%emt 0:00:49]} Rg3 {[%emt 0:00:28]} 37. Ne2 {[%emt 0:00:37]} Rg8 {[%emt 0:00:15]} 38. f4 {[%emt 0:01:28]} Qe7 {[%emt 0:00:46]} 39. f5 {[%emt 0:00:30]} Be5 {[%emt 0:00:26]} 40. Bf4 {[%emt 0:00:29]} Bxb2 {[%emt 0:00:31]} 41. Bxd6 {[%emt 0:30:38]} Qg5 {[%emt 0:30:23]} 42. Bf4 {[%emt 0:00:57]} Qf6 {[%emt 0:00:00]} 43. e5 {[%emt 0:00:00]} Qxf5 {[%emt 0:00:00]} 44. Qxh4 {[%emt 0:00:00]} Qg6 {[%emt 0:00:00]} 45. Bf3 {[%emt 0:00:00]} Bd4 {[%emt 0:00:00]} 46. Ng3 {[%emt 0:00:00]} Kh8 {[%emt 0:00:00]} 47. Be4 {[%emt 0:00:00]} Qg7 {[%emt 0:00:00]} 48. Bxh6 {[%emt 0:00:00]} 1-0

[Event "SVK ECo-C Extraliga 2018-19"]
[Site "Slovakia"]
[Date "2019.02.16"]
[Round "5.4"]
[White "Bokros, Albert"]
[Black "Petrik, Tomas"]
[Result "1/2-1/2"]
[ECO "C00"]
[WhiteElo "2458"]
[BlackElo "2469"]
[Annotator "ChessBase"]
[PlyCount "55"]
[EventDate "2018.11.10"]
[EventType "team-tourn"]
[EventCountry "SVK"]
[SourceTitle "playchess.com"]
[Source "ChessBase"]
[SourceQuality "1"]
[WhiteTeam "Streda"]
[BlackTeam "Zilina"]
[TimeControl "40/5400+30:1800+30"]

1. e4 {[%emt 0:00:00]} e6 {[%emt 0:00:00]} 2. d4 {[%emt 0:00:39]} d5 {[%emt 0:00:00]} 3. Bd3 {[%emt 0:00:21]} dxe4 {[%emt 0:03:03]} 4. Bxe4 {[%emt 0:00:12]} Nf6 {[%emt 0:00:09]} 5. Bf3 {[%emt 0:00:05]} c5 {[%emt 0:02:42]} 6. Ne2 {[%emt 0:03:44]} Nc6 {[%emt 0:01:35]} 7. Be3 {[%emt 0:00:44]} cxd4 {[%emt 0:00:51]} 8. Nxd4 {[%emt 0:00:54]} Ne5 {[%emt 0:01:43]} 9. O-O {[%emt 0:03:03]} Be7 {[%emt 0:02:01]} 10. Nc3 {[%emt 0:03:00]} O-O {[%emt 0:01:44]} 11. Qe2 {[%emt 0:06:50]} a6 {[%emt 0:18:47]} 12. Rad1 {[%emt 0:08:55]} Qc7 {[%emt 0:08:17]} 13. Bg5 {[%emt 0:13:14]} Nxf3+ {[%emt 0:33:17]} 14. Qxf3 {[%emt 0:03:02]} Re8 {[%emt 0:00:58]} 15. Rfe1 {[%emt 0:05:28]} Bd7 {[%emt 0:00:59]} 16. Ne4 {[%emt 0:24:18]} Nxe4 {[%emt 0:02:14]} 17. Bxe7 {[%emt 0:00:15]} Rxe7 {[%emt 0:00:57]} 18. Qxe4 {[%emt 0:01:21]} Ree8 {[%emt 0:00:44]} 19. Re3 {[%emt 0:01:25]} e5 {[%emt 0:07:32]} 20. Nf5 {[%emt 0:01:54]} Rad8 {[%emt 0:04:22]} 21. h3 {[%emt 0:09:35]} Bxf5 {[%emt 0:05:40]} 22. Rxd8 {[%emt 0:00:31]} Rxd8 {[%emt 0:01:14]} 23. Qxf5 {[%emt 0:00:07]} f6 {[%emt 0:00:29]} 24. Rc3 {[%emt 0:02:56]} Qd7 {[%emt 0:00:19]} 25. Qe4 {[%emt 0:01:09]} Qf7 {[%emt 0:00:34]} 26. a3 {[%emt 0:01:56]} h6 {[%emt 0:00:21]} 27. Rd3 {[%emt 0:02:29]} Rxd3 {[%emt 0:00:45]} 28. Qxd3 {[%emt 0:00:10]} 1/2-1/2

[Event "SVK ECo-C Extraliga 2018-19"]
[Site "Slovakia"]
[Date "2019.02.16"]
[Round "5.5"]
[White "Likavsky, Tomas"]
[Black "Maslik, Miroslav"]
[Result "0-1"]
[ECO "E01"]
[WhiteElo "2428"]
[BlackElo "2361"]
[Annotator "NA"]
[PlyCount "81"]
[EventDate "2018.11.10"]
[EventType "team-tourn"]
[EventCountry "SVK"]
[SourceTitle "playchess.com"]
[Source "ChessBase"]
[SourceQuality "1"]
[WhiteTeam "Podhajska"]
[BlackTeam "Modra"]
[TimeControl "40/5400+30:1800+30"]

1. c4 {[%emt 0:00:11]} e6 {[%emt 0:00:00]} 2. d4 {[%emt 0:01:40]} Nf6 {[%emt 0:00:00]} 3. g3 {[%emt 0:00:35]} d5 {[%emt 0:02:31]} 4. Bg2 {[%emt 0:01:12]} Nbd7 {[%emt 0:00:42]} 5. Nf3 {[%emt 0:09:05]} Bb4+ {[%emt 0:00:32]} 6. Nbd2 {[%emt 0:08:37]} O-O {[%emt 0:06:31]} 7. O-O {[%emt 0:00:40]} c6 {[%emt 0:00:32]} 8. Qc2 {[%emt 0:06:03]} b6 {[%emt 0:00:14]} 9. e4 {[%emt 0:02:14]} Bb7 {[%emt 0:03:11]} 10. e5 {[%emt 0:07:14]} Ne8 {[%emt 0:00:07]} 11. cxd5 {[%emt 0:08:32]} cxd5 {[%emt 0:00:15]} 12. Re1 {[%emt 0:02:30]} Nb8 {[%emt 0:11:19]} 13. a3 {[%emt 0:02:58]} Be7 {[%emt 0:00:14]} 14. b4 {[%emt 0:01:09]} Ba6 {[%emt 0:02:39]} 15. Qb1 {[%emt 0:05:46]} Nc7 {[%emt 0:09:53]} 16. a4 {[%emt 0:02:58]} Bb7 {[%emt 0:13:00]} 17. Nf1 {[%emt 0:04:10]} Nc6 {[%emt 0:02:55]} 18. Bd2 {[%emt 0:00:51]} b5 {[%emt 0:01:31]} 19. Ne3 {[%emt 0:01:32]} a5 {[%emt 0:05:10]} 20. bxa5 {[%emt 0:02:03]} b4 {[%emt 0:00:21]} 21. Nc2 {[%emt 0:02:54]} Ba6 {[%emt 0:01:02]} 22. Nxb4 {[%emt 0:01:29]} Bxb4 {[%emt 0:02:04]} 23. Bxb4 {[%emt 0:00:48]} Rb8 {[%emt 0:00:13]} 24. Bxf8 {[%emt 0:00:33]} Rxb1 {[%emt 0:00:06]} 25. Raxb1 {[%emt 0:00:34]} Kxf8 {[%emt 0:01:22]} 26. Rb6 {[%emt 0:01:24]} Nxa5 {[%emt 0:06:53]} 27. Reb1 {[%emt 0:00:30]} Qd7 {[%emt 0:01:35]} 28. Rb8+ {[%emt 0:01:55]} Ke7 {[%emt 0:05:02]} 29. Rg8 {[%emt 0:00:13]} Ne8 {[%emt 0:00:25]} 30. Rb8 {[%emt 0:03:30]} Bc8 {[%emt 0:00:18]} 31. Bf1 {[%emt 0:01:31]} Nc4 {[%emt 0:03:35]} 32. Ne1 {[%emt 0:04:43]} Qc7 {[%emt 0:00:32]} 33. Rb4 {[%emt 0:00:07]} Nd2 {[%emt 0:05:09]} 34. Bb5 {[%emt 0:01:23]} Bd7 {[%emt 0:00:58]} 35. Bxd7 {[%emt 0:05:31]} Kxd7 {[%emt 0:01:11]} 36. Nd3 {[%emt 0:00:16]} Qc3 {[%emt 0:04:01]} 37. Nc5+ {[%emt 0:04:46]} Kc6 {[%emt 0:01:11]} 38. Rb1 {[%emt 0:00:17]} Nxb1 {[%emt 0:00:17]} 39. Rxe8 {[%emt 0:00:06]} Qe1+ {[%emt 0:03:14]} 40. Kg2 {[%emt 0:00:28]} Nd2 {[%emt 0:00:04]} 41. Rf8 0-1

[Event "SVK ECo-C Extraliga 2018-19"]
[Site "Slovakia"]
[Date "2019.02.16"]
[Round "5.5"]
[White "Haring, Viktor"]
[Black "Pacher, Milan"]
[Result "1-0"]
[ECO "B33"]
[WhiteElo "2278"]
[BlackElo "2439"]
[Annotator "NA"]
[PlyCount "95"]
[EventDate "2018.11.10"]
[EventType "team-tourn"]
[EventCountry "SVK"]
[SourceTitle "playchess.com"]
[Source "ChessBase"]
[SourceQuality "1"]
[WhiteTeam "Liptovska"]
[BlackTeam "Slovan"]
[TimeControl "40/5400+30:1800+30"]

1. e4 {[%emt 0:00:00]} c5 {[%emt 0:00:00]} 2. Nf3 {[%emt 0:00:00]} Nc6 {[%emt 0:00:00]} 3. d4 {[%emt 0:00:21]} cxd4 {[%emt 0:00:00]} 4. Nxd4 {[%emt 0:00:13]} Nf6 {[%emt 0:00:00]} 5. Nc3 {[%emt 0:00:19]} e5 {[%emt 0:00:00]} 6. Ndb5 {[%emt 0:00:19]} d6 {[%emt 0:00:06]} 7. Bg5 {[%emt 0:00:23]} a6 {[%emt 0:00:04]} 8. Na3 {[%emt 0:00:20]} b5 {[%emt 0:00:06]} 9. Nd5 {[%emt 0:00:36]} Be7 {[%emt 0:00:07]} 10. Bxf6 {[%emt 0:00:32]} Bxf6 {[%emt 0:00:03]} 11. c3 {[%emt 0:02:13]} Bg5 {[%emt 0:00:08]} 12. Nc2 {[%emt 0:00:53]} Ne7 {[%emt 0:00:10]} 13. h4 {[%emt 0:07:47]} Bh6 {[%emt 0:00:25]} 14. Ncb4 {[%emt 0:02:09]} O-O {[%emt 0:00:34]} 15. Nxe7+ {[%emt 0:02:37]} Qxe7 {[%emt 0:04:30]} 16. Nd5 {[%emt 0:00:15]} Qb7 {[%emt 0:00:22]} 17. Qb3 {[%emt 0:19:53]} Be6 {[%emt 0:03:09]} 18. Rd1 {[%emt 0:00:19]} Rac8 {[%emt 0:03:18]} 19. Be2 {[%emt 0:19:27]} Rc5 {[%emt 0:01:19]} 20. O-O {[%emt 0:06:22]} f5 {[%emt 0:02:50]} 21. Bf3 {[%emt 0:01:37]} fxe4 {[%emt 0:02:50]} 22. Bxe4 {[%emt 0:01:15]} Qf7 {[%emt 0:01:27]} 23. Rd3 {[%emt 0:09:40]} Kh8 {[%emt 0:02:04]} 24. Qd1 {[%emt 0:05:44]} Rc4 {[%emt 0:04:06]} 25. Qe2 {[%emt 0:02:17]} Rxe4 {[%emt 0:07:24]} 26. Qxe4 {[%emt 0:00:07]} Bf5 {[%emt 0:00:05]} 27. Qe2 {[%emt 0:00:24]} Bxd3 {[%emt 0:00:09]} 28. Qxd3 {[%emt 0:00:05]} g6 {[%emt 0:01:11]} 29. Qe4 {[%emt 0:11:38]} Rc8 {[%emt 0:02:44]} 30. g3 {[%emt 0:03:18]} Rc4 {[%emt 0:03:17]} 31. Qg2 {[%emt 0:00:05]} e4 {[%emt 0:00:59]} 32. Ne3 {[%emt 0:02:52]} Bxe3 {[%emt 0:00:51]} 33. fxe3 {[%emt 0:00:03]} Qe6 {[%emt 0:00:21]} 34. Qf2 {[%emt 0:00:50]} Rc8 {[%emt 0:00:44]} 35. Qf6+ {[%emt 0:01:00]} Qxf6 {[%emt 0:00:05]} 36. Rxf6 {[%emt 0:00:09]} b4 {[%emt 0:00:23]} 37. cxb4 {[%emt 0:00:57]} Rc1+ {[%emt 0:01:14]} 38. Kg2 {[%emt 0:01:19]} Ra1 {[%emt 0:01:21]} 39. a3 {[%emt 0:00:21]} Rb1 {[%emt 0:00:15]} 40. Rxd6 {[%emt 0:00:37]} Rxb2+ {[%emt 0:00:06]} 41. Kh3 {[%emt 0:01:29]} Rb3 {[%emt 0:00:04]} 42. Rxa6 {[%emt 0:00:13]} Rxe3 {[%emt 0:00:07]} 43. a4 {[%emt 0:12:04]} Re1 {[%emt 0:02:26]} 44. b5 {[%emt 0:03:02]} Kg7 {[%emt 0:00:28]} 45. b6 {[%emt 0:07:57]} Rb1 {[%emt 0:00:14]} 46. Kg4 {[%emt 0:02:08]} Rf1 {[%emt 0:02:31]} 47. Ra7+ {[%emt 0:03:50]} Kf6 {[%emt 0:00:07]} 48. Rxh7 {[%emt 0:00:50]} 1-0

[Event "SVK ECo-C Extraliga 2018-19"]
[Site "Slovakia"]
[Date "2019.02.16"]
[Round "5.6"]
[White "Bures, Jaroslav"]
[Black "Tropp, Oliver"]
[Result "1-0"]
[ECO "D45"]
[WhiteElo "2395"]
[BlackElo "2169"]
[Annotator "NA"]
[PlyCount "129"]
[EventDate "2018.11.10"]
[EventType "team-tourn"]
[EventCountry "SVK"]
[SourceTitle "playchess.com"]
[Source "ChessBase"]
[SourceQuality "1"]
[WhiteTeam "Slovan"]
[BlackTeam "Liptovska"]
[TimeControl "40/5400+30:1800+30"]

1. d4 {[%emt 0:00:00]} d5 {[%emt 0:00:00]} 2. c4 {[%emt 0:00:00]} c6 {[%emt 0:00:00]} 3. Nf3 {[%emt 0:00:00]} Nf6 {[%emt 0:00:13]} 4. Nc3 {[%emt 0:00:00]} e6 {[%emt 0:05:22]} 5. e3 {[%emt 0:00:21]} Be7 {[%emt 0:04:02]} 6. b3 {[%emt 0:02:55]} O-O {[%emt 0:00:47]} 7. Bb2 {[%emt 0:00:10]} Qa5 {[%emt 0:07:51]} 8. a3 {[%emt 0:02:35]} Nbd7 {[%emt 0:00:40]} 9. Be2 {[%emt 0:04:41]} dxc4 {[%emt 0:02:36]} 10. bxc4 {[%emt 0:00:14]} e5 {[%emt 0:02:49]} 11. O-O {[%emt 0:00:10]} exd4 {[%emt 0:00:36]} 12. exd4 {[%emt 0:00:07]} Nb6 {[%emt 0:01:08]} 13. h3 {[%emt 0:02:17]} Be6 {[%emt 0:07:28]} 14. Qb3 {[%emt 0:00:55]} Rad8 {[%emt 0:03:07]} 15. Rfd1 {[%emt 0:01:52]} Rfe8 {[%emt 0:06:44]} 16. Bc1 {[%emt 0:08:05]} h6 {[%emt 0:08:16]} 17. Bd2 {[%emt 0:03:34]} Qf5 {[%emt 0:12:09]} 18. a4 {[%emt 0:00:06]} c5 {[%emt 0:00:53]} 19. Nb5 {[%emt 0:11:39]} cxd4 {[%emt 0:13:15]} 20. Nbxd4 {[%emt 0:02:18]} Qc5 {[%emt 0:02:09]} 21. Nxe6 {[%emt 0:00:10]} fxe6 {[%emt 0:00:13]} 22. a5 {[%emt 0:02:19]} Nc8 {[%emt 0:05:56]} 23. Qxb7 {[%emt 0:02:49]} Nd6 {[%emt 0:00:04]} 24. Qa6 {[%emt 0:03:00]} Qc8 {[%emt 0:04:49]} 25. Qxc8 {[%emt 0:01:16]} Rxc8 {[%emt 0:00:13]} 26. Be3 {[%emt 0:07:05]} Nxc4 {[%emt 0:02:04]} 27. Bxa7 {[%emt 0:02:40]} Nd5 {[%emt 0:01:19]} 28. a6 {[%emt 0:09:27]} Nc3 {[%emt 0:05:02]} 29. Re1 {[%emt 0:02:35]} Bf6 {[%emt 0:00:49]} 30. Bd4 {[%emt 0:02:17]} Nxe2+ {[%emt 0:00:47]} 31. Rxe2 {[%emt 0:00:12]} e5 {[%emt 0:00:07]} 32. a7 {[%emt 0:02:04]} Ra8 {[%emt 0:01:07]} 33. Ra4 {[%emt 0:01:22]} exd4 {[%emt 0:02:44]} 34. Rxe8+ {[%emt 0:00:49]} Rxe8 {[%emt 0:00:01]} 35. a8=Q {[%emt 0:00:09]} Rxa8 {[%emt 0:00:01]} 36. Rxa8+ {[%emt 0:00:05]} Kf7 {[%emt 0:00:07]} 37. Ne1 {[%emt 0:07:57]} Nb2 {[%emt 0:01:34]} 38. Ra3 {[%emt 0:00:23]} Ke6 {[%emt 0:00:21]} 39. Kf1 {[%emt 0:01:48]} Kd5 {[%emt 0:00:21]} 40. Ke2 {[%emt 0:00:36]} Nc4 {[%emt 0:01:34]} 41. Ra7 {[%emt 0:32:13]} Nd6 {[%emt 0:10:17]} 42. Ra5+ {[%emt 0:00:00]} Kc4 {[%emt 0:00:29]} 43. Nd3 {[%emt 0:00:00]} Ne4 {[%emt 0:01:09]} 44. Ra7 {[%emt 0:00:00]} Nc3+ {[%emt 0:04:21]} 45. Kd2 {[%emt 0:00:00]} Nd5 {[%emt 0:00:47]} 46. Kc2 {[%emt 0:00:00]} h5 {[%emt 0:01:25]} 47. Ra4+ {[%emt 0:00:00]} Kb5 {[%emt 0:00:08]} 48. Kb3 {[%emt 0:00:00]} h4 {[%emt 0:00:44]} 49. Ra8 {[%emt 0:00:00]} Nb6 {[%emt 0:00:48]} 50. Rf8 {[%emt 0:00:00]} Nd7 {[%emt 0:02:40]} 51. Rc8 {[%emt 0:00:00]} Nb6 {[%emt 0:01:11]} 52. Rc5+ {[%emt 0:00:00]} Ka6 {[%emt 0:00:06]} 53. Nb4+ {[%emt 0:00:00]} Kb7 {[%emt 0:00:27]} 54. Rb5 {[%emt 0:00:00]} Kc7 {[%emt 0:00:37]} 55. Kc2 {[%emt 0:00:00]} Nd7 {[%emt 0:00:35]} 56. Kd3 {[%emt 0:00:00]} Kd6 {[%emt 0:00:21]} 57. Rd5+ {[%emt 0:00:00]} Ke6 {[%emt 0:00:46]} 58. f4 {[%emt 0:00:00]} g6 {[%emt 0:00:46]} 59. Rb5 {[%emt 0:00:00]} Kd6 {[%emt 0:01:54]} 60. Kc4 {[%emt 0:00:37]} Bh8 {[%emt 0:03:14]} 61. Rg5 {[%emt 0:01:39]} Nf8 {[%emt 0:00:13]} 62. Nc2 {[%emt 0:00:46]} Ne6 {[%emt 0:05:41]} 63. Rxg6 {[%emt 0:00:34]} Ke7 {[%emt 0:00:06]} 64. Rg4 {[%emt 0:01:29]} Bf6 {[%emt 0:00:20]} 65. f5 {[%emt 0:00:21]} 1-0

[Event "SVK ECo-C Extraliga 2018-19"]
[Site "Slovakia"]
[Date "2019.02.16"]
[Round "5.6"]
[White "Schwarz, Dusan"]
[Black "Chovan, Milan"]
[Result "0-1"]
[ECO "A45"]
[WhiteElo "2330"]
[BlackElo "2336"]
[Annotator "NA"]
[PlyCount "56"]
[EventDate "2018.11.10"]
[EventType "team-tourn"]
[EventCountry "SVK"]
[SourceTitle "playchess.com"]
[Source "ChessBase"]
[SourceQuality "1"]
[WhiteTeam "Modra"]
[BlackTeam "Podhajska"]
[TimeControl "40/5400+30:1800+30"]

1. d4 {[%emt 0:00:00]} Nf6 {[%emt 0:00:00]} 2. Bg5 {[%emt 0:00:05]} c5 {[%emt 0:00:00]} 3. d5 {[%emt 0:00:30]} Ne4 {[%emt 0:00:00]} 4. Bf4 {[%emt 0:00:12]} Qb6 {[%emt 0:00:34]} 5. Nd2 {[%emt 0:00:32]} Qxb2 {[%emt 0:00:55]} 6. Nxe4 {[%emt 0:00:12]} Qb4+ {[%emt 0:00:09]} 7. Qd2 {[%emt 0:00:24]} Qxe4 {[%emt 0:00:09]} 8. e3 {[%emt 0:00:18]} g5 {[%emt 0:04:46]} 9. Bg3 {[%emt 0:05:50]} Bg7 {[%emt 0:08:38]} 10. Rc1 {[%emt 0:09:11]} d6 {[%emt 0:07:54]} 11. Nf3 {[%emt 0:05:29]} Qg6 {[%emt 0:05:19]} 12. Bb5+ {[%emt 0:19:46]} Bd7 {[%emt 0:03:31]} 13. Rb1 {[%emt 0:00:27]} Bxb5 {[%emt 0:13:01]} 14. Rxb5 {[%emt 0:00:08]} b6 {[%emt 0:00:09]} 15. O-O {[%emt 0:03:03]} Nd7 {[%emt 0:01:32]} 16. c4 {[%emt 0:15:08]} Nf6 {[%emt 0:05:02]} 17. Rb3 {[%emt 0:02:29]} Ne4 {[%emt 0:01:45]} 18. Qe2 {[%emt 0:01:28]} O-O {[%emt 0:05:32]} 19. Ne1 {[%emt 0:03:54]} e6 {[%emt 0:07:17]} 20. dxe6 {[%emt 0:04:15]} fxe6 {[%emt 0:00:09]} 21. f3 {[%emt 0:02:28]} Nxg3 {[%emt 0:00:21]} 22. hxg3 {[%emt 0:00:05]} d5 {[%emt 0:01:13]} 23. Nc2 {[%emt 0:02:20]} Rad8 {[%emt 0:00:40]} 24. cxd5 {[%emt 0:01:47]} exd5 {[%emt 0:00:12]} 25. Rd3 {[%emt 0:01:35]} Rd6 {[%emt 0:04:01]} 26. e4 {[%emt 0:01:40]} d4 {[%emt 0:01:14]} 27. e5 {[%emt 0:01:47]} Bxe5 {[%emt 0:02:44]} 28. Qxe5 {[%emt 0:00:55]} Re8 {[%emt 0:00:11]} 0-1

[Event "SVK ECo-C Extraliga 2018-19"]
[Site "Slovakia"]
[Date "2019.02.16"]
[Round "5.7"]
[White "Zvarik, Martin"]
[Black "Czebe, Attila"]
[Result "0-1"]
[ECO "A49"]
[WhiteElo "2311"]
[BlackElo "2392"]
[Annotator "NA"]
[PlyCount "106"]
[EventDate "2018.11.10"]
[EventType "team-tourn"]
[EventCountry "SVK"]
[SourceTitle "playchess.com"]
[Source "ChessBase"]
[SourceQuality "1"]
[WhiteTeam "Zilina"]
[BlackTeam "Streda"]
[TimeControl "40/5400+30:1800+30"]

1. d4 {[%emt 0:02:13]} Nf6 {[%emt 0:00:00]} 2. Nf3 {[%emt 0:00:25]} g6 {[%emt 0:01:13]} 3. g3 {[%emt 0:00:52]} Bg7 {[%emt 0:01:56]} 4. Bg2 {[%emt 0:00:11]} b6 {[%emt 0:00:41]} 5. Ne5 {[%emt 0:03:44]} c6 {[%emt 0:00:14]} 6. c4 {[%emt 0:07:49]} Bb7 {[%emt 0:01:05]} 7. Nc3 {[%emt 0:01:53]} O-O {[%emt 0:00:53]} 8. O-O {[%emt 0:05:23]} Ne8 {[%emt 0:03:47]} 9. e3 {[%emt 0:05:24]} Nd6 {[%emt 0:03:42]} 10. b3 {[%emt 0:09:22]} Na6 {[%emt 0:01:34]} 11. Bb2 {[%emt 0:10:31]} c5 {[%emt 0:03:53]} 12. Bxb7 {[%emt 0:06:09]} Nxb7 {[%emt 0:00:05]} 13. Qg4 {[%emt 0:02:59]} Na5 {[%emt 0:03:32]} 14. Rad1 {[%emt 0:01:45]} d6 {[%emt 0:01:08]} 15. Nf3 {[%emt 0:01:54]} Qc8 {[%emt 0:08:07]} 16. Qe4 {[%emt 0:02:09]} Qb7 {[%emt 0:00:37]} 17. Qxb7 {[%emt 0:02:55]} Nxb7 {[%emt 0:00:12]} 18. Rd2 {[%emt 0:00:19]} Nc7 {[%emt 0:01:11]} 19. Kg2 {[%emt 0:04:51]} Rfb8 {[%emt 0:05:00]} 20. Rfd1 {[%emt 0:03:37]} Nd8 {[%emt 0:01:07]} 21. h4 {[%emt 0:07:10]} Nc6 {[%emt 0:06:15]} 22. h5 {[%emt 0:01:15]} cxd4 {[%emt 0:03:44]} 23. exd4 {[%emt 0:02:34]} b5 {[%emt 0:02:25]} 24. hxg6 {[%emt 0:02:08]} hxg6 {[%emt 0:00:16]} 25. c5 {[%emt 0:00:35]} d5 {[%emt 0:03:20]} 26. Rh1 {[%emt 0:00:58]} b4 {[%emt 0:00:43]} 27. Nd1 {[%emt 0:00:49]} f6 {[%emt 0:00:46]} 28. Ne3 {[%emt 0:00:57]} Kf7 {[%emt 0:00:05]} 29. Re2 {[%emt 0:03:56]} Rh8 {[%emt 0:00:41]} 30. Ra1 {[%emt 0:00:38]} e6 {[%emt 0:00:11]} 31. a3 {[%emt 0:00:53]} bxa3 {[%emt 0:00:09]} 32. Rxa3 {[%emt 0:00:33]} Rab8 {[%emt 0:00:40]} 33. Nc2 {[%emt 0:01:29]} Rb7 {[%emt 0:00:03]} 34. Bc1 {[%emt 0:01:15]} a5 {[%emt 0:12:01]} 35. Bd2 {[%emt 0:01:11]} Rb5 {[%emt 0:01:42]} 36. Bf4 {[%emt 0:00:43]} Rb7 {[%emt 0:04:12]} 37. Bd2 {[%emt 0:00:15]} g5 {[%emt 0:12:01]} 38. Bxa5 {[%emt 0:00:45]} g4 {[%emt 0:00:17]} 39. Nd2 {[%emt 0:01:43]} Nb5 {[%emt 0:00:07]} 40. Ra4 {[%emt 0:00:17]} f5 {[%emt 0:02:43]} 41. Re3 {[%emt 0:33:38]} Rc8 {[%emt 0:42:37]} 42. Bc3 {[%emt 0:00:00]} Bh6 {[%emt 0:00:00]} 43. Bb2 {[%emt 0:00:00]} Bxe3 {[%emt 0:00:00]} 44. fxe3 {[%emt 0:00:00]} Ra7 {[%emt 0:00:00]} 45. Rxa7+ {[%emt 0:00:00]} Nbxa7 {[%emt 0:00:00]} 46. Ne1 {[%emt 0:00:00]} Nb4 {[%emt 0:00:00]} 47. Kf2 {[%emt 0:00:00]} Nb5 {[%emt 0:00:00]} 48. Ke2 {[%emt 0:00:00]} Rh8 {[%emt 0:00:00]} 49. Nf1 {[%emt 0:00:00]} Ra8 {[%emt 0:00:00]} 50. Kd2 {[%emt 0:00:00]} Rh8 {[%emt 0:00:00]} 51. Ke2 {[%emt 0:00:00]} Ke7 {[%emt 0:00:00]} 52. Nd3 {[%emt 0:00:00]} Nxd3 {[%emt 0:00:00]} 53. Kxd3 {[%emt 0:00:00]} Kd7 {[%emt 0:00:00]} 0-1

[Event "SVK ECo-C Extraliga 2018-19"]
[Site "Slovakia"]
[Date "2019.02.16"]
[Round "5.7"]
[White "Gazik, Igor"]
[Black "Banas, Kamil"]
[Result "1/2-1/2"]
[ECO "C42"]
[WhiteElo "2249"]
[BlackElo "2245"]
[Annotator "NA"]
[PlyCount "44"]
[EventDate "2018.11.10"]
[EventType "team-tourn"]
[EventCountry "SVK"]
[SourceTitle "playchess.com"]
[Source "ChessBase"]
[SourceQuality "1"]
[WhiteTeam "Podhajska"]
[BlackTeam "Modra"]
[TimeControl "40/5400+30:1800+30"]

1. e4 {[%emt 0:00:00]} e5 {[%emt 0:00:00]} 2. Nf3 {[%emt 0:00:13]} Nf6 {[%emt 0:00:00]} 3. Nxe5 {[%emt 0:00:14]} d6 {[%emt 0:00:01]} 4. Nf3 {[%emt 0:00:07]} Nxe4 {[%emt 0:00:04]} 5. d4 {[%emt 0:00:12]} d5 {[%emt 0:00:06]} 6. Bd3 {[%emt 0:00:18]} Nc6 {[%emt 0:00:18]} 7. O-O {[%emt 0:01:11]} Be7 {[%emt 0:00:03]} 8. c4 {[%emt 0:03:24]} Nb4 {[%emt 0:00:44]} 9. Be2 {[%emt 0:03:20]} Bf5 {[%emt 0:00:13]} 10. a3 {[%emt 0:14:49]} Nc6 {[%emt 0:00:21]} 11. Nc3 {[%emt 0:00:09]} Nxc3 {[%emt 0:00:20]} 12. bxc3 {[%emt 0:00:08]} O-O {[%emt 0:00:09]} 13. Re1 {[%emt 0:03:19]} Re8 {[%emt 0:00:20]} 14. Bf4 {[%emt 0:18:13]} Rc8 {[%emt 0:01:15]} 15. Qa4 {[%emt 0:11:51]} a6 {[%emt 0:08:30]} 16. cxd5 {[%emt 0:07:23]} Qxd5 {[%emt 0:01:32]} 17. Bf1 {[%emt 0:00:10]} Qd7 {[%emt 0:14:15]} 18. Bg3 {[%emt 0:11:36]} Bd6 {[%emt 0:06:19]} 19. Nh4 {[%emt 0:03:18]} Bxg3 {[%emt 0:01:19]} 20. hxg3 {[%emt 0:00:07]} Rxe1 {[%emt 0:05:36]} 21. Rxe1 {[%emt 0:00:02]} Be6 {[%emt 0:00:21]} 22. Bd3 {[%emt 0:02:31]} Ne5 {[%emt 0:07:49]} 1/2-1/2